lending/lending_fUSD_20260104
["ID","MTS","AMOUNT","RATE_DAILY","PERIOD"]
[400431634,1767547838561,-200.0,0.00015426,2]
[400431636,1767547838571,-500.0,0.00015426,2]
[400431638,1767547838580,-500.0,0.00015426,2]
[400431640,1767547838590,-500.0,0.00015426,2]
[400431641,1767547838599,-500.0,0.00015426,2]
[400431642,1767547838609,-500.0,0.00015426,2]
[400431644,1767547838619,-500.0,0.00015426,2]
[400431645,1767547838629,-500.0,0.00015426,2]
[400431647,1767547838639,-500.0,0.00015426,2]
[400431648,1767547838649,-379.60153142,0.00015426,2]
[400431649,1767547840290,-120.39846858,0.00015426,2]
[400431650,1767547840300,-156.47352942,0.00015426,2]
[400431651,1767547840314,-343.52647058,0.00015426,2]
[400431653,1767547840324,-500.0,0.00015426,2]
[400431654,1767547840333,-500.0,0.00015426,2]
[400431655,1767547840343,-500.0,0.00015426,2]
[400431656,1767547840352,-7.59485506,0.00015426,2]
[400431657,1767547840363,-405.34725027,0.00015426,2]
[400431658,1767547840375,-87.05789467,0.00015426,2]
[400431659,1767547840384,-500.0,0.00015426,2]
[400431660,1767547840394,-356.87051983,0.00015426,2]
[400431661,1767547840406,-143.12948017,0.00015426,2]
[400431662,1767547840416,-500.0,0.00015426,2]
[400431663,1767547840425,-500.0,0.00015426,2]
[400431664,1767547840435,-500.0,0.00015426,2]
[400431665,1767547840445,-500.0,0.00015426,2]
[400431666,1767547840454,-3283.69968239,0.00015427,2]
[400431667,1767547840469,-2751.39440627,0.00015427,2]
[400431668,1767547840481,-1361.29,0.00015427,2]
[400431669,1767547840509,-854.0836,0.00015427,2]
[400431670,1767547840522,-5954.8,0.00015427,2]
[400431671,1767547840536,-8963.955,0.00015427,2]
[400431672,1767547840548,-703.4738453,0.00015427,2]
[400431673,1767547840561,-23380.25365777,0.00015427,2]
[400431674,1767547840572,-1368.08453927,0.00015427,2]
[400431675,1767547840583,-506.37642362,0.00015427,2]
[400431676,1767547840597,-4619.849466,0.00015427,2]
[400431677,1767547840674,-11393.00688643,0.00015427,2]
[400431678,1767547840685,-860.73995649,0.00015427,2]
[400431679,1767547840696,-347.45489711,0.00015427,2]
[400431680,1767547840707,-10703.3979,0.00015427,2]
[400431682,1767547843976,-4197.18904291,0.00015427,2]
[400431683,1767547843988,-340.981756,0.00015427,2]
[400431684,1767547844002,-962.15420671,0.00015427,2]
[400431685,1767547844013,-3445.27867976,0.00015427,2]
[400431686,1767547844828,-300.0,0.00015427,2]
[400431687,1767547844839,-489.07083889,0.00015427,2]
[400431688,1767547844888,-305309.68491155,0.00015427,2]
[400431689,1767547844899,-22215.37913688,0.00015427,2]
[400431690,1767547844943,-410.39994,0.00015427,2]
[400431691,1767547844958,-302.0,0.00015427,2]
[400431699,1767547846395,-2210.25629834,0.00015427,2]
[400431700,1767547846407,-945.83191163,0.00015427,2]
[400431701,1767547846419,-214528.61571025,0.00015427,2]
[400431702,1767547861430,2326.53245713,0.0001537,2]
[400431713,1767547954609,-300.0,0.00015425,2]
[400431714,1767547954637,-1899.23071139,0.00015426,2]
[400431715,1767547954669,-500.0,0.00015426,2]
[400431716,1767547954701,-500.0,0.00015426,2]
[400431717,1767547954733,-500.0,0.00015426,2]
[400431718,1767547954767,-500.0,0.00015426,2]
[400431719,1767547954798,-500.0,0.00015426,2]
[400431720,1767547954829,-101.54857722,0.00015426,2]
[400431721,1767547954950,-398.45142278,0.00015426,2]
[400431722,1767547966413,-229.88754356,0.00015426,2]
[400431723,1767547966449,-500.0,0.00015426,2]
[400431724,1767547966482,-500.0,0.00015426,2]
[400431725,1767547966517,-500.0,0.00015426,2]
[400431726,1767547966550,-500.0,0.00015426,2]
[400431727,1767547966583,-500.0,0.00015426,2]
[400431728,1767547966622,-500.0,0.00015426,2]
[400431729,1767547966656,-302.66377995,0.00015426,2]
[400431730,1767547966691,-500.0,0.00015426,2]
[400431731,1767547966724,-500.0,0.00015426,2]
[400431732,1767547966759,-434.90735298,0.00015426,2]
[400431733,1767547966934,-65.09264702,0.00015426,2]
[400431734,1767547973634,-232.65885128,0.00015426,2]
[400431735,1767547973667,-500.0,0.00015426,2]
[400431736,1767547973700,-500.0,0.00015426,2]
[400431737,1767547973733,-500.0,0.00015426,2]
[400431738,1767547973765,-500.0,0.00015426,2]
[400431739,1767547973795,-500.0,0.00015426,2]
[400431740,1767547973827,-500.0,0.00015426,2]
[400431741,1767547973858,-500.0,0.00015426,2]
[400431742,1767547973889,-500.0,0.00015426,2]
[400431744,1767547973925,-500.0,0.00015426,2]
[400431745,1767547973957,-34.69229744,0.00015426,2]
[400431746,1767547974136,-465.30770256,0.00015426,2]
[400431747,1767547974169,-500.0,0.00015426,2]
[400431748,1767547974201,-500.0,0.00015426,2]
[400431749,1767547974230,-250.0,0.00015427,2]
[400431750,1767547974262,-1090.30242918,0.00015427,2]
[400431751,1767547974300,-4388.78973652,0.00015427,2]
[400431752,1767547974327,-445.73192696,0.00015428,2]
[400431754,1767547974405,-330.96667304,0.00015428,2]
[400431755,1767547974434,-532.7014,0.0001543,2]
[400431756,1767547974462,-1323.6555,0.00015507,2]
[400431757,1767547974490,-1200.0,0.0001552,2]
[400431758,1767547974519,-200.0,0.00015521,2]
[400431759,1767547974549,-151.0,0.00015521,2]
[400431760,1767547974577,-151.0,0.00015521,2]
[400431761,1767547974606,-151.0,0.00015521,2]
[400431762,1767547974635,-151.0,0.00015521,2]
[400431763,1767547974664,-151.0,0.00015521,2]
[400431764,1767547974693,-151.0,0.00015521,2]
[400431765,1767547974722,-151.0,0.00015521,2]
[400431766,1767547974751,-151.0,0.00015521,2]
[400431767,1767547974778,-151.0,0.00015521,2]
[400431770,1767547974888,-200.01807784,0.00015521,2]
[400431771,1767547974925,-151.0,0.00015521,2]
[400431772,1767547974958,-153.70166196,0.00015521,2]
[400431773,1767547974996,-200.0,0.00015521,2]
[400431774,1767547975030,-1196.66,0.00015527,2]
[400431776,1767547975553,-609.43113652,0.00015527,2]
[400431777,1767547975567,-1200.0,0.00015527,2]
[400431778,1767547975581,-200.0,0.00015527,2]
[400431779,1767547975594,-151.0,0.00015527,2]
[400431780,1767547975607,-151.0,0.00015527,2]
[400431781,1767547975620,-151.0,0.00015527,2]
[400431782,1767547975634,-151.0,0.00015527,2]
[400431783,1767547975647,-151.0,0.00015527,2]
[400431784,1767547975660,-151.0,0.00015527,2]
[400431786,1767547975674,-151.0,0.00015527,2]
[400431787,1767547975687,-151.0,0.00015527,2]
[400431788,1767547975701,-151.0,0.00015527,2]
[400431789,1767547975715,-107.36285392,0.00015527,2]
[400431790,1767547975728,-200.01807784,0.00015527,2]
[400431791,1767547975741,-151.0,0.00015527,2]
[400431792,1767547975754,-153.70166196,0.00015527,2]
[400431793,1767547975768,-200.0,0.00015527,2]
[400431794,1767547975782,-1196.66,0.00015527,2]
[400431795,1767547975796,-5099.55626976,0.00015527,2]
[400431796,1767547975804,-1097.69425064,0.00015527,2]
[400431797,1767547975818,-2725.31574936,0.00015527,2]
[400431798,1767547975827,-7274.69425064,0.00015527,2]
[400431799,1767547975841,-9567.49574936,0.00015527,2]
[400431800,1767547975851,-432.51425064,0.00015527,2]
[400431801,1767547975864,-2131.19574936,0.00015527,2]
[400431802,1767547975873,-1499.99,0.00015527,2]
[400431803,1767547975882,-999.99,0.00015527,2]
[400431804,1767547975891,-150.99,0.00015527,2]
[400431805,1767547975899,-1195.8,0.00015527,2]
[400431806,1767547975908,-150.99,0.00015528,2]
[400431807,1767547975919,-3871.05425064,0.00015528,2]
[400431808,1767547981512,-300.0,0.00015527,2]
[400431809,1767547981547,-9400.01,0.00015528,2]
[400431810,1767547981837,-300.0,0.00015527,2]
[400431811,1767547981873,-9400.01,0.00015528,2]
[400431812,1767547982020,-2526.82574936,0.00015528,2]
[400431813,1767547982056,-4946.35850128,0.00015528,2]
[400431814,1767547982212,-4946.37850128,0.00015528,2]
[400431815,1767547982235,-107.25299744,0.00015528,2]
[400431816,1767547983854,-526.66,0.00015529,2]
[400431817,1767547983882,-500.0,0.00015529,2]
[400431818,1767547983911,-500.0,0.0001553,2]
[400431819,1767547983942,-504.75468002,0.0001553,2]
[400431820,1767547983970,-500.0,0.0001553,2]
[400431821,1767547983999,-500.0,0.0001553,2]
[400431822,1767547984027,-504.23547705,0.0001553,2]
[400431823,1767547984055,-500.0,0.0001553,2]
[400431824,1767547984084,-500.0,0.0001553,2]
[400431825,1767547984117,-428.70968586,0.0001553,2]
[400431826,1767547984423,-71.29031414,0.0001553,2]
[400431827,1767547984467,-500.0,0.0001553,2]
[400431828,1767547984497,-500.0,0.0001553,2]
[400431829,1767547984527,-500.0,0.0001553,2]
[400431830,1767547984557,-597.7787886,0.0001553,2]
[400431831,1767547984586,-500.0,0.0001553,2]
[400431832,1767547984617,-500.0,0.0001553,2]
[400431833,1767547984647,-500.0,0.0001553,2]
[400431834,1767547984676,-500.0,0.0001553,2]
[400431835,1767547984705,-500.0,0.0001553,2]
[400431836,1767547984736,-304.4524228,0.0001553,2]
[400431837,1767547984891,-195.5475772,0.0001553,2]
[400431841,1767548021972,33.2499761,0.00015326,2]
[400431842,1767548021998,169.5700239,0.00015326,2]
[400431843,1767548044823,10000.01,0.00015421,2]
[400431844,1767548044855,2168.88857173,0.00015421,2]
[400431845,1767548044886,273.87594425,0.00015421,2]
[400431846,1767548051556,1399.59,7.639e-05,2]
[400431847,1767548051743,1399.59,8.041e-05,2]
[400431848,1767548051945,1399.59,8.443e-05,2]
[400431850,1767548052154,1399.59,8.845e-05,2]
[400431851,1767548052354,1399.59,9.247e-05,2]
[400431853,1767548052553,1399.59,9.649e-05,2]
[400431854,1767548052826,1399.59,0.00010051,2]
[400431856,1767548052945,1399.59,0.00010453,2]
[400431857,1767548053179,1399.59,0.00010855,2]
[400431859,1767548053373,1399.59,0.00011257,2]
[400431860,1767548053582,1399.59,0.00011659,2]
[400431862,1767548053799,1399.59,0.00012061,2]
[400431863,1767548054000,1399.59,0.00012464,2]
[400431866,1767548054203,1399.59,0.00012866,2]
[400431867,1767548054400,1399.59,0.00013268,2]
[400431868,1767548054606,1399.59,0.0001367,2]
[400431869,1767548054808,1399.59,0.00014072,2]
[400431870,1767548055018,1399.59,0.00014474,2]
[400431871,1767548055224,1399.59,0.00014876,2]
[400431872,1767548060858,-1399.59,0.00015278,2]
[400431879,1767548137032,1351.26711362,0.00015329,2]
[400431880,1767548168819,4156.20799598,0.00015329,2]
[400431881,1767548189549,838.36,0.00013699,2]
[400431882,1767548198841,1000.0,0.00014962,2]
[400431888,1767548226260,2654.1748904,0.00015036,2]
[400431889,1767548226287,585.8251096,0.00015036,2]
[400431890,1767548273778,157.99038448,0.00015329,2]
[400431902,1767548377974,500.0,0.00014995,2]
[400431903,1767548397736,200.82218847,0.00015321,2]
[400431905,1767548413295,8555.37231745,0.00014928,2]
[400431906,1767548413319,4641.68768255,0.00014928,2]
[400431927,1767548494106,1337.167,0.00015113,2]
[400431928,1767548494141,164.564,0.00015113,2]
[400431958,1767548534260,157.99038445,0.00015321,2]
[400431961,1767548538001,200.82218847,0.00015321,2]
[400431977,1767548555146,3740.5871964,0.00015321,2]
[400432008,1767548605430,1500.0,0.0001486,2]
[400432010,1767548606619,4759.4228036,0.000152,2]
[400432011,1767548606645,10000.01,0.000152,2]
[400432012,1767548606668,10000.01,0.000152,2]
[400432013,1767548606693,10000.01,0.000152,2]
[400432014,1767548606716,5252.5471964,0.000152,2]
[400432033,1767548647329,1216.14040224,0.00015321,2]
[400432043,1767548668310,200.82218847,0.00015321,2]
[400432063,1767548731682,3330.50021289,0.000151,3]
[400432064,1767548731706,2200.49978711,0.000151,3]
[400432078,1767548793799,5531.0,0.000153,5]
[400432094,1767548869193,-1200.0,0.00015399,2]
[400432095,1767548869222,-195.0,0.00015399,2]
[400432096,1767548869250,-250.0,0.000154,2]
[400432097,1767548869279,-157.99038445,0.000154,2]
[400432098,1767548869308,-195.0,0.00015407,2]
[400432099,1767548869337,-300.0,0.00015417,2]
[400432100,1767548869368,-1200.0,0.00015417,2]
[400432101,1767548869396,-278.0,0.00015418,2]
[400432102,1767548869423,-151.0,0.00015418,2]
[400432103,1767548869450,-300.0,0.00015419,2]
[400432104,1767548869479,-300.0,0.00015419,2]
[400432105,1767548869507,-421.33,0.0001542,2]
[400432106,1767548869754,-500.0,0.0001542,2]
[400432107,1767548869782,-296.96257251,0.0001542,2]
[400432108,1767548869809,-320.97156437,0.0001542,2]
[400432109,1767548869838,-300.0,0.0001542,2]
[400432110,1767548869872,-500.0,0.0001542,2]
[400432111,1767548869903,-500.0,0.0001542,2]
[400432112,1767548869934,-500.0,0.0001542,2]
[400432113,1767548870154,-500.0,0.0001542,2]
[400432114,1767548870186,-500.0,0.0001542,2]
[400432115,1767548870216,-500.0,0.0001542,2]
[400432116,1767548870246,-500.0,0.0001542,2]
[400432117,1767548870586,-500.0,0.0001542,2]
[400432118,1767548870619,-500.0,0.0001542,2]
[400432119,1767548870650,-500.0,0.0001542,2]
[400432120,1767548870685,-500.0,0.0001542,2]
[400432121,1767548870718,-500.0,0.0001542,2]
[400432122,1767548870750,-500.0,0.0001542,2]
[400432123,1767548870782,-500.0,0.0001542,2]
[400432124,1767548870812,-500.0,0.0001542,2]
[400432125,1767548870845,-500.0,0.0001542,2]
[400432126,1767548870876,-500.0,0.0001542,2]
[400432127,1767548870954,-500.0,0.0001542,2]
[400432128,1767548870988,-500.0,0.0001542,2]
[400432129,1767548871021,-500.0,0.0001542,2]
[400432130,1767548871054,-160.32246867,0.0001542,2]
[400432131,1767548871086,-500.0,0.0001542,2]
[400432132,1767548871118,-500.0,0.0001542,2]
[400432133,1767548871153,-500.0,0.0001542,2]
[400432134,1767548871185,-500.0,0.0001542,2]
[400432135,1767548871215,-500.0,0.0001542,2]
[400432136,1767548871247,-500.0,0.0001542,2]
[400432137,1767548871283,-179.36506266,0.0001542,2]
[400432139,1767548877719,-320.63493734,0.0001542,2]
[400432140,1767548877753,-500.0,0.0001542,2]
[400432141,1767548877786,-500.0,0.0001542,2]
[400432142,1767548877820,-500.0,0.0001542,2]
[400432143,1767548877852,-500.0,0.0001542,2]
[400432144,1767548877884,-500.0,0.0001542,2]
[400432145,1767548877916,-462.25805207,0.0001542,2]
[400432146,1767548890567,-1764.38,0.00015186,2]
[400432147,1767548891348,-6290.29512085,0.00015421,2]
[400432148,1767548891414,-10000.01,0.00015421,2]
[400432149,1767548897903,-151.0,0.00015418,2]
[400432150,1767548897934,-1200.0,0.0001542,2]
[400432151,1767548897982,-7298.01,0.00015421,2]
[400432152,1767548898014,-10000.01,0.00015421,2]
[400432153,1767548898116,-10000.01,0.00015421,2]
[400432165,1767548909411,-10000.01,0.00015421,2]
[400432166,1767548909526,-10000.01,0.00015421,2]
[400432167,1767548909635,-10000.01,0.00015421,2]
[400432171,1767548957376,-3366.52847676,0.00015347,2]
[400432185,1767549018688,1088.95,0.00014934,2]
[400432186,1767549019854,157.99038445,0.00015347,2]
[400432193,1767549031463,-151.0,0.00015418,2]
[400432194,1767549031473,-300.0,0.0001542,2]
[400432195,1767549031484,-300.0,0.0001542,2]
[400432196,1767549031494,-1200.0,0.0001542,2]
[400432197,1767549031504,-4428.73160868,0.00015421,2]
[400432198,1767549031515,-300.0,0.00015421,2]
[400432199,1767549031527,-1430.75548095,0.00015421,2]
[400432200,1767549031571,-804.0,0.00015421,2]
[400432201,1767549031626,-18341.1777839,0.00015421,2]
[400432217,1767549037470,-797.15215664,0.00015421,2]
[400432218,1767549037482,-3354.35483825,0.00015421,2]
[400432219,1767549037575,-598.42417427,0.00015421,2]
[400432220,1767549037587,-1025.44079975,0.00015421,2]
[400432221,1767549037599,-3061.28528718,0.00015421,2]
[400432235,1767549039671,-311.79400032,0.00015421,2]
[400432236,1767549039830,-9067.80647665,0.00015421,2]
[400432242,1767549044043,-34.65579213,0.00015421,2]
[400432243,1767549044058,-588892.32287789,0.00015421,2]
[400432244,1767549044073,-23553.54032277,0.00015421,2]
[400432251,1767549045474,-873.50683617,0.00015421,2]
[400432252,1767549045527,-316.58135143,0.00015421,2]
[400432254,1767549055752,2020.01266203,0.00015321,2]
[400432255,1767549055780,10000.01,0.00015321,2]
[400432256,1767549055809,10000.01,0.00015321,2]
[400432257,1767549055836,10000.01,0.00015321,2]
[400432258,1767549055862,10000.01,0.00015321,2]
[400432259,1767549055887,10000.01,0.00015321,2]
[400432260,1767549055914,10000.01,0.00015321,2]
[400432261,1767549055941,10000.01,0.00015321,2]
[400432262,1767549055969,10000.01,0.00015321,2]
[400432263,1767549055995,10000.01,0.00015321,2]
[400432274,1767549063243,1600.0,0.00014975,2]
[400432275,1767549085095,-300.0,0.0001532,2]
[400432276,1767549085124,-300.0,0.0001532,2]
[400432278,1767549093902,1069.733,0.00015015,2]
[400432279,1767549093951,164.564,0.00015015,2]
[400432280,1767549102698,-5533.05695352,0.00015321,2]
[400432281,1767549102939,-10000.01,0.00015321,2]
[400432282,1767549103142,-10000.01,0.00015321,2]
[400432284,1767549109052,-10000.01,0.00015321,2]
[400432285,1767549116374,-10000.01,0.00015321,2]
[400432286,1767549116724,-10000.01,0.00015321,2]
[400432297,1767549143403,155.72,0.00014929,2]
[400432307,1767549279079,-301.48234093,0.00015245,2]
[400432308,1767549285663,187.74,0.00014678,2]
[400432340,1767549327641,510.77765907,0.00015241,2]
[400432625,1767549420417,-363.31008451,0.00015198,2]
[400433241,1767549541603,2084.35,0.00014479,2]
[400433565,1767549677494,219.17,0.0001442,2]
[400433647,1767549700047,-1000.0,0.00015203,2]
[400433680,1767549708701,-1000.0,0.00015203,2]
[400433683,1767549710640,-84.35,0.00015203,2]
[400433684,1767549710662,-276.0,0.00015203,2]
[400433685,1767549710684,-250.0,0.00015207,2]
[400433716,1767549722941,242.20672302,0.0001514,2]
[400433729,1767549728771,147.44327698,0.00015191,2]
[400433730,1767549728797,94.76344602,0.00015191,2]
[400433760,1767549751228,-195.0,0.00015211,2]
[400433761,1767549751249,-250.0,0.00015218,2]
[400433871,1767549776606,-448.389,0.00015221,2]
[400433997,1767549824318,1000.0,0.00015221,2]
[400434187,1767549878987,200.0,0.00014622,2]
[400434249,1767549901981,-300.0,0.0001524,2]
[400434251,1767549902009,-300.0,0.0001524,2]
[400434252,1767549902038,-1200.0,0.0001524,2]
[400434253,1767549902067,-300.0,0.0001524,2]
[400434254,1767549902096,-195.0,0.0001524,2]
[400434255,1767549902125,-195.0,0.00015241,2]
[400434256,1767549902154,-1488.24645506,0.00015241,2]
[400434272,1767549908625,-3295.19883876,0.00015241,2]
[400434273,1767549908655,-242.206723,0.00015241,2]
[400434274,1767549908685,-157.18958886,0.00015241,2]
[400434275,1767549908715,-300.0,0.00015298,2]
[400434276,1767549908745,-151.0,0.00015312,2]
[400434277,1767549908775,-151.0,0.00015312,2]
[400434278,1767549908806,-151.0,0.00015312,2]
[400434279,1767549908837,-151.0,0.00015312,2]
[400434280,1767549908869,-151.0,0.00015312,2]
[400434281,1767549908899,-151.0,0.00015312,2]
[400434283,1767549908929,-47.81969876,0.00015312,2]
[400434325,1767549913927,-103.18030124,0.00015312,2]
[400434327,1767549913958,-151.0,0.00015312,2]
[400434329,1767549913988,-151.0,0.00015318,2]
[400434331,1767549914019,-1199.304,0.0001532,2]
[400434333,1767549914047,-163.706,0.0001532,2]
[400434334,1767549914075,-300.0,0.0001532,2]
[400434335,1767549914110,-500.0,0.0001532,2]
[400434336,1767549914140,-337.06,0.0001532,2]
[400434337,1767549914170,-503.7859467,0.0001532,2]
[400434338,1767549914199,-354.01417055,0.0001532,2]
[400434339,1767549914228,-269.70675559,0.0001532,2]
[400434341,1767549914262,-500.0,0.0001532,2]
[400434343,1767549914297,-434.49565184,0.0001532,2]
[400434437,1767549948379,183.42,0.00014769,2]
[400434485,1767549989416,166.66,0.00013968,2]
[400434487,1767549989623,166.66,0.00014262,2]
[400434488,1767549989821,166.66,0.00014556,2]
[400434489,1767549990030,166.66,0.0001485,2]
[400434490,1767549990230,166.66,0.00015144,2]
[400434495,1767549997580,-1000.0,0.00015311,2]
[400434561,1767550058642,-1000.0,0.00015311,2]
[400434566,1767550065823,1852.42,0.00014648,2]
[400434570,1767550088272,7130.87,0.0001522,2]
[400434571,1767550088300,800.0,0.0001522,2]
[400434572,1767550088324,1000.0,0.0001522,2]
[400434573,1767550088352,551.611,0.0001522,2]
[400434574,1767550088378,555.0,0.0001522,2]
[400434603,1767550100812,-151.0,0.00015217,2]
[400434605,1767550100885,-8420.21173928,0.0001522,2]
[400434606,1767550105212,1000.0,0.0001514,2]
[400434607,1767550105234,636.68991549,0.0001514,2]
[400434608,1767550105255,1000.0,0.0001514,2]
[400434610,1767550106867,178.97,0.00014701,2]
[400434621,1767550125607,-328.98903943,0.0001514,2]
[400434631,1767550142701,-10000.01,0.00015142,2]
[400434632,1767550143025,-79.881932,0.00015142,2]
[400434645,1767550157719,-300.0,0.00015218,2]
[400434646,1767550157741,-300.0,0.00015218,2]
[400434647,1767550157762,-250.0,0.00015219,2]
[400434648,1767550157785,-190.37551502,0.00015219,2]
[400434649,1767550157808,-210.13200972,0.00015219,2]
[400434650,1767550157829,-344.40879894,0.00015219,2]
[400434651,1767550157849,-188.79472891,0.00015219,2]
[400434652,1767550157869,-500.0,0.00015219,2]
[400434653,1767550157890,-500.0,0.00015219,2]
[400434654,1767550157914,-500.0,0.00015219,2]
[400434655,1767550157937,-500.0,0.00015219,2]
[400434656,1767550157956,-263.22870966,0.00015219,2]
[400434657,1767550157976,-500.0,0.00015219,2]
[400434658,1767550158000,-500.0,0.00015219,2]
[400434659,1767550158023,-500.0,0.00015219,2]
[400434660,1767550158042,-321.68788026,0.00015219,2]
[400434661,1767550158065,-500.0,0.00015219,2]
[400434662,1767550158087,-500.0,0.00015219,2]
[400434663,1767550158109,-411.49673397,0.00015219,2]
[400434664,1767550158132,-500.0,0.00015219,2]
[400434665,1767550158156,-500.0,0.00015219,2]
[400434666,1767550158179,-500.0,0.00015219,2]
[400434667,1767550158202,-500.0,0.00015219,2]
[400434668,1767550158225,-500.0,0.00015219,2]
[400434669,1767550158248,-219.87562352,0.00015219,2]
[400434670,1767550158679,-280.12437648,0.00015219,2]
[400434671,1767550158706,-500.0,0.00015219,2]
[400434672,1767550158730,-500.0,0.00015219,2]
[400434673,1767550158754,-500.0,0.00015219,2]
[400434674,1767550158779,-500.0,0.00015219,2]
[400434675,1767550158803,-500.0,0.00015219,2]
[400434676,1767550158827,-500.0,0.00015219,2]
[400434677,1767550158850,-500.0,0.00015219,2]
[400434678,1767550158873,-500.0,0.00015219,2]
[400434679,1767550158896,-500.0,0.00015219,2]
[400434680,1767550158921,-500.0,0.00015219,2]
[400434681,1767550158944,-500.0,0.00015219,2]
[400434682,1767550158970,-500.0,0.00015219,2]
[400434683,1767550158995,-500.0,0.00015219,2]
[400434684,1767550159019,-500.0,0.00015219,2]
[400434685,1767550159046,-2719.87562352,0.0001522,2]
[400434686,1767550159107,-10000.0,0.0001522,2]
[400434688,1767550159698,-10000.0,0.0001522,2]
[400434690,1767550160184,-10000.0,0.0001522,2]
[400434691,1767550160774,-10000.0,0.0001522,2]
[400434692,1767550161219,-10000.0,0.0001522,2]
[400434693,1767550161420,999.0,0.00014705,3]
[400434694,1767550161775,-10000.0,0.0001522,2]
[400434697,1767550162309,-10000.0,0.0001522,2]
[400434698,1767550163089,-10000.0,0.0001522,2]
[400434699,1767550163865,-10000.0,0.0001522,2]
[400434701,1767550164863,-10000.0,0.0001522,2]
[400434702,1767550165735,-10000.0,0.0001522,2]
[400434703,1767550166615,-10000.0,0.0001522,2]
[400434705,1767550167453,-10000.0,0.0001522,2]
[400434706,1767550168263,-10000.0,0.0001522,2]
[400434708,1767550170449,-10000.0,0.0001522,2]
[400434718,1767550183617,1339.4218095,0.0001514,2]
[400434723,1767550189900,-3303.0,0.0001522,2]
[400434738,1767550213426,200.0,0.00014669,2]
[400434744,1767550231646,-300.0,0.00015219,2]
[400434745,1767550231656,-127.13399201,0.00015219,2]
[400434746,1767550231667,-172.86600799,0.00015219,2]
[400434747,1767550231681,-1200.0,0.00015219,2]
[400434748,1767550231691,-946.76629342,0.0001522,2]
[400434750,1767550231755,-14178.81755267,0.0001522,2]
[400435209,1767550237791,-1031.76353211,0.0001522,2]
[400435210,1767550237803,-6201.66287275,0.0001522,2]
[400435211,1767550237847,-300.0,0.0001522,2]
[400435212,1767550237859,-894.2839151,0.0001522,2]
[400435213,1767550239934,-19549.14955814,0.0001522,2]
[400435217,1767550240721,-421.40999999,0.0001522,2]
[400435234,1767550243342,-1523.6235154,0.0001522,2]
[400435236,1767550243396,-1288.95483898,0.0001522,2]
[400435237,1767550243408,-2630.64669746,0.0001522,2]
[400435238,1767550243452,-1715.1,0.0001522,2]
[400435239,1767550243574,-11.9261385,0.0001522,2]
[400435319,1767550289790,166.68,0.00015091,2]
[400435322,1767550293898,959.443,0.00014916,2]
[400435323,1767550293940,163.70700513,0.00014916,2]
[400435327,1767550319002,-300.0,0.00015219,2]
[400435328,1767550319033,-195.0,0.00015219,2]
[400435329,1767550319062,-250.0,0.0001522,2]
[400435330,1767550319209,-4681.75818537,0.0001522,2]
[400435331,1767550319277,-10000.01,0.0001522,2]
[400435332,1767550319618,-10000.01,0.0001522,2]
[400435333,1767550320027,-10000.01,0.0001522,2]
[400435335,1767550320266,-10000.01,0.0001522,2]
[400435336,1767550320433,-10000.01,0.0001522,2]
[400435337,1767550320634,-10000.01,0.0001522,2]
[400435338,1767550320752,-10000.01,0.0001522,2]
[400435345,1767550328853,-157.18958885,0.0001512,2]
[400435346,1767550328885,-300.0,0.00015219,2]